Workbook

Sheet Лист1
A1: ИТОГОВЫЕ РЕЗУЛЬТАТЫ ВсОШ ПО МАТЕМАТИКЕ
A3: № п/п | B3: Фамилия | C3: Имя | D3: Отчество | E3: Класс | F3: Кол-во баллов | G3: Максимальное количество баллов | H3: Рейтинг, %
A4: 1 | B4: Попов | C4: Георгий | D4: Сергеевич | E4: 4 | F4: 45 | G4: 56 | H4: =F4/G4 -> 80.36%
A5: 2 | B5: Шаталов | C5: Тимур | D5: Антонович | E5: 4 | F5: 44 | G5: 56 | H5: 78.57%
A6: 3 | B6: Исаева | C6: Екатерина | D6: Антоновна | E6: 4 | F6: 43 | G6: 56 | H6: 76.79%
A7: 4 | B7: Хмелев | C7: Егор | D7: Алексеевич | E7: 4 | F7: 43 | G7: 56 | H7: 76.79%
A8: 5 | B8: Чиляков | C8: Илья | D8: Александрович | E8: 4 | F8: 43 | G8: 56 | H8: 76.79%
A9: 6 | B9: Заковряшин | C9: Кирилл | D9: Сергеевич | E9: 4 | F9: 42 | G9: 56 | H9: 75.00%
A10: 7 | B10: Потемина | C10: Милана | D10: Ярославовна | E10: 4 | F10: 42 | G10: 56 | H10: 75.00%
A11: 8 | B11: Витченко | C11: Ульяна | D11: Константиновна | E11: 4 | F11: 39 | G11: 56 | H11: 69.64%
A12: 9 | B12: Митрохович | C12: Дарья | D12: Денисовна | E12: 4 | F12: 39 | G12: 56 | H12: 69.64%
A13: 10 | B13: Трушкока | C13: Василиса | D13: Павловна | E13: 4 | F13: 39 | G13: 56 | H13: 69.64%
A14: 11 | B14: Левченко | C14: Даниил | D14: Андреевич | E14: 4 | F14: 38 | G14: 56 | H14: 67.86%
A15: 12 | B15: Цепенко | C15: Карина | D15: Максимовна | E15: 4 | F15: 38 | G15: 56 | H15: 67.86%
A16: 13 | B16: Шенфельд | C16: Елизавета | D16: Константиновна | E16: 4 | F16: 38 | G16: 56 | H16: 67.86%
A17: 14 | B17: Бармин | C17: Тимур | D17: Артемович | E17: 4 | F17: 37 | G17: 56 | H17: 66.07%
A18: 15 | B18: Горбенко | C18: Виктория | D18: Максимовна | E18: 4 | F18: 37 | G18: 56 | H18: 66.07%
A19: 16 | B19: Кудров | C19: Захар | D19: Ильич | E19: 4 | F19: 37 | G19: 56 | H19: 66.07%
A20: 17 | B20: Гребенникова | C20: Дарья | D20: Андреевна | E20: 4 | F20: 36 | G20: 56 | H20: 64.29%
A21: 18 | B21: Кондратенко | C21: София | D21: Андреевна | E21: 4 | F21: 36 | G21: 56 | H21: 64.29%
A22: 19 | B22: Мастяева | C22: Ксения | D22: Алексеевна | E22: 4 | F22: 36 | G22: 56 | H22: 64.29%
A23: 20 | B23: Морозова | C23: Дарина | D23: Евгеньевна | E23: 4 | F23: 36 | G23: 56 | H23: 64.29%
A24: 21 | B24: Федотенкова | C24: Таисия | D24: Дмитриевна | E24: 4 | F24: 36 | G24: 56 | H24: 64.29%
A25: 22 | B25: Курилина | C25: Марина | D25: Игоревна | E25: 4 | F25: 35 | G25: 56 | H25: 62.50%
A26: 23 | B26: Огребо | C26: Аделина | D26: Алексеевна | E26: 4 | F26: 35 | G26: 56 | H26: 62.50%
A27: 24 | B27: Колмогоров | C27: Егор | D27: Александрович | E27: 4 | F27: 33 | G27: 56 | H27: 58.93%
A28: 25 | B28: Мишин | C28: Егор | D28: Дмитриевич | E28: 4 | F28: 33 | G28: 56 | H28: 58.93%
A29: 26 | B29: Повещенко | C29: Александра | D29: Сергеевна | E29: 4 | F29: 33 | G29: 56 | H29: 58.93%
A30: 27 | B30: Анкудинов | C30: Владислав | D30: Дмитриевич | E30: 4 | F30: 32 | G30: 56 | H30: 57.14%
A31: 28 | B31: Горохова | C31: Екатерина | D31: Михайловна | E31: 4 | F31: 32 | G31: 56 | H31: 57.14%
A32: 29 | B32: Кравченко | C32: Василиса | D32: Артемовна | E32: 4 | F32: 32 | G32: 56 | H32: 57.14%
A33: 30 | B33: Милашин | C33: Артём | D33: Анатольевич | E33: 4 | F33: 32 | G33: 56 | H33: 57.14%
A34: 31 | B34: Богомолов | C34: Роман | D34: Евгеньевич | E34: 4 | F34: 31 | G34: 56 | H34: 55.36%
A35: 32 | B35: Вахрушин | C35: Ярослав | D35: Ильич | E35: 4 | F35: 31 | G35: 56 | H35: 55.36%
A36: 33 | B36: Калиниченко | C36: Александр | D36: Вячеславович | E36: 4 | F36: 31 | G36: 56 | H36: 55.36%
A37: 34 | B37: Калиниченко | C37: София | D37: Сергеевна | E37: 4 | F37: 31 | G37: 56 | H37: 55.36%
A38: 35 | B38: Овчинникова | C38: Мария | D38: Александровна | E38: 4 | F38: 30 | G38: 56 | H38: 53.57%
A39: 36 | B39: Филатов | C39: Георгий | D39: Максимович | E39: 4 | F39: 30 | G39: 56 | H39: 53.57%
A40: 37 | B40: Гаврилов | C40: Марк | D40: Сергеевич | E40: 4 | F40: 29 | G40: 56 | H40: 51.79%
A41: 38 | B41: Измайлова | C41: Алиса | D41: Романовна | E41: 4 | F41: 29 | G41: 56 | H41: 51.79%
A42: 39 | B42: Лаврентьева | C42: Полина | D42: Евгеньевна | E42: 4 | F42: 29 | G42: 56 | H42: 51.79%
A43: 40 | B43: Прозверов | C43: Максим | D43: Алексеевич | E43: 4 | F43: 29 | G43: 56 | H43: 51.79%
A44: 41 | B44: Телепня | C44: Анастасия | D44: Витальевна | E44: 4 | F44: 29 | G44: 56 | H44: 51.79%
A45: 42 | B45: Угрюмова | C45: Ульяна | D45: Ивановна | E45: 4 | F45: 29 | G45: 56 | H45: 51.79%
A46: 43 | B46: Ужгина | C46: Ярослава | D46: Анатольевна | E46: 4 | F46: 29 | G46: 56 | H46: 51.79%
A47: 44 | B47: Чекмазова | C47: Варвара | D47: Алексеевна | E47: 4 | F47: 29 | G47: 56 | H47: 51.79%
A48: 45 | B48: Якунина | C48: Аврора | D48: Романовна | E48: 4 | F48: 29 | G48: 56 | H48: 51.79%
A49: 46 | B49: Воротынцева | C49: Маргарита | D49: Михайловна | E49: 4 | F49: 28 | G49: 56 | H49: 50.00%
A50: 47 | B50: Голубовская | C50: София | D50: Ярославовна | E50: 4 | F50: 28 | G50: 56 | H50: 50.00%
A51: 48 | B51: Ким | C51: Камилла | D51: Владимировна | E51: 4 | F51: 28 | G51: 56 | H51: 50.00%
A52: 49 | B52: Стывко | C52: Алиса | D52: Викторовна | E52: 4 | F52: 28 | G52: 56 | H52: 50.00%
A53: 50 | B53: Владимирова | C53: Алёна | D53: Евгеньевна | E53: 4 | F53: 27 | G53: 56 | H53: 48.21%
A54: 51 | B54: Ращупкина | C54: Александра | D54: Евгеньевна | E54: 4 | F54: 27 | G54: 56 | H54: 48.21%
A55: 52 | B55: Лаксаева | C55: Александра | D55: Ивановна | E55: 4 | F55: 26 | G55: 56 | H55: 46.43%
A56: 53 | B56: Мокеева | C56: Ева | D56: Денисовна | E56: 4 | F56: 26 | G56: 56 | H56: 46.43%
A57: 54 | B57: Ворохова | C57: Софья | D57: Денисовна | E57: 4 | F57: 25 | G57: 56 | H57: 44.64%
A58: 55 | B58: Кайгородцева | C58: Мария | D58: Евгеньевна | E58: 4 | F58: 25 | G58: 56 | H58: 44.64%
A59: 56 | B59: Порхунов | C59: Иван | D59: Сергеевич | E59: 4 | F59: 25 | G59: 56 | H59: 44.64%
A60: 57 | B60: Иванова | C60: Виктория | D60: Валерьевна | E60: 4 | F60: 24 | G60: 56 | H60: 42.86%
A61: 58 | B61: Климошенко | C61: Алиса | D61: Алексеевна | E61: 4 | F61: 24 | G61: 56 | H61: 42.86%
A62: 59 | B62: Ролледор | C62: София | D62: Робертовна | E62: 4 | F62: 24 | G62: 56 | H62: 42.86%
A63: 60 | B63: Салькова | C63: Таисия | D63: Никитична | E63: 4 | F63: 24 | G63: 56 | H63: 42.86%
A64: 61 | B64: Шерстова | C64: Милена | D64: Алексеевна | E64: 4 | F64: 24 | G64: 56 | H64: 42.86%
A65: 62 | B65: Белых | C65: Лилия | D65: Дмитриевна | E65: 4 | F65: 23 | G65: 56 | H65: 41.07%
A66: 63 | B66: Куртюкова | C66: Елизавета | D66: Евгеньевна | E66: 4 | F66: 23 | G66: 56 | H66: 41.07%
A67: 64 | B67: Рубцов | C67: Владимир | D67: Вячеславович | E67: 4 | F67: 23 | G67: 56 | H67: 41.07%
A68: 65 | B68: Сакулина | C68: Эмилия | D68: Анатольевна | E68: 4 | F68: 23 | G68: 56 | H68: =F68/G68 -> 41.07%
A69: 66 | B69: Жолобова | C69: Анна | D69: Александровна | E69: 4 | F69: 22 | G69: 56 | H69: 39.29%
A70: 67 | B70: Зверева | C70: Софья | D70: Олеговна | E70: 4 | F70: 22 | G70: 56 | H70: 39.29%
A71: 68 | B71: Истомина | C71: Мирослава | D71: Андреевна | E71: 4 | F71: 22 | G71: 56 | H71: 39.29%
A72: 69 | B72: Кукарских | C72: Макар | D72: Александрович | E72: 4 | F72: 22 | G72: 56 | H72: 39.29%
A73: 70 | B73: Кумар | C73: Милиса | D73: Махешевна | E73: 4 | F73: 22 | G73: 56 | H73: 39.29%
A74: 71 | B74: Манзырков | C74: Давид | D74: Витальевич | E74: 4 | F74: 22 | G74: 56 | H74: 39.29%
A75: 72 | B75: Полуэктов | C75: Дмитрий | D75: Григорьевич | E75: 4 | F75: 22 | G75: 56 | H75: 39.29%
A76: 73 | B76: Шмидт | C76: Варвара | D76: Михайловна | E76: 4 | F76: 22 | G76: 56 | H76: 39.29%
A77: 74 | B77: Щербаков | C77: Мирон | D77: Максимович | E77: 4 | F77: 22 | G77: 56 | H77: 39.29%
A78: 75 | B78: Кулаков | C78: Гордей | D78: Евгеньевич | E78: 4 | F78: 21 | G78: 56 | H78: 37.50%
A79: 76 | B79: Лучко | C79: Ярослав | D79: Владимирович | E79: 4 | F79: 21 | G79: 56 | H79: 37.50%
A80: 77 | B80: Пуйсан | C80: Андрей | D80: Евгеньевич | E80: 4 | F80: 21 | G80: 56 | H80: 37.50%
A81: 78 | B81: Рассказов | C81: Герман | D81: Романович | E81: 4 | F81: 21 | G81: 56 | H81: 37.50%
A82: 79 | B82: Червоненко | C82: Никита | D82: Владимирович | E82: 4 | F82: 21 | G82: 56 | H82: 37.50%
A83: 80 | B83: Лучишина | C83: Маргарита | D83: Андреевна | E83: 4 | F83: 21 | G83: 56 | H83: 37.50%
A84: 81 | B84: Бурнашова | C84: Ксения | D84: Викторовна | E84: 4 | F84: 20 | G84: 56 | H84: 35.71%
A85: 82 | B85: Володин | C85: Костя | D85: Алексеевич | E85: 4 | F85: 20 | G85: 56 | H85: 35.71%
A86: 83 | B86: Ларина | C86: Анна | E86: 4 | F86: 20 | G86: 56 | H86: 35.71%
A87: 84 | B87: Серазетдинова | C87: Кира | D87: Ренатовна | E87: 4 | F87: 20 | G87: 56 | H87: 35.71%
A88: 85 | B88: Бажнёв | C88: Тимофей | D88: Михайлович | E88: 4 | F88: 19 | G88: 56 | H88: 33.93%
A89: 86 | B89: Белов | C89: Александр | D89: Анатольевич | E89: 4 | F89: 19 | G89: 56 | H89: 33.93%
A90: 87 | B90: Волков | C90: Ярослав | D90: Владиславович | E90: 4 | F90: 19 | G90: 56 | H90: 33.93%
A91: 88 | B91: Сидоров | C91: Демид | D91: Анатольевич | E91: 4 | F91: 19 | G91: 56 | H91: 33.93%
A92: 89 | B92: Стукова | C92: Валерия | D92: Дмитриевна | E92: 4 | F92: 19 | G92: 56 | H92: 33.93%
A93: 90 | B93: Володина | C93: Милана | D93: Тарасовна | E93: 4 | F93: 18 | G93: 56 | H93: 32.14%
A94: 91 | B94: Головачев | C94: Никита | D94: Геннадьевич | E94: 4 | F94: 18 | G94: 56 | H94: 32.14%
A95: 92 | B95: Козлов | C95: Евгений | D95: Артурович | E95: 4 | F95: 18 | G95: 56 | H95: 32.14%
A96: 93 | B96: Алкурт | C96: Дарья | E96: 4 | F96: 17 | G96: 56 | H96: 30.36%
A97: 94 | B97: Кононыхин | C97: Аркадий | D97: Ильич | E97: 4 | F97: 17 | G97: 56 | H97: 30.36%
A98: 95 | B98: Омельницкий | C98: Денис | D98: Владимирович | E98: 4 | F98: 17 | G98: 56 | H98: 30.36%
A99: 96 | B99: Пясковская | C99: Мария | D99: Михайловна | E99: 4 | F99: 17 | G99: 56 | H99: 30.36%
A100: 97 | B100: Савельев | C100: Михаил | D100: Максимович | E100: 4 | F100: 17 | G100: 56 | H100: 30.36%
A101: 98 | B101: Тупиченко | C101: Николай | D101: Андреевич | E101: 4 | F101: 17 | G101: 56 | H101: 30.36%
A102: 99 | B102: Чаптыкова | C102: Софья | D102: Александровна | E102: 4 | F102: 17 | G102: 56 | H102: 30.36%
A103: 100 | B103: Чучманская | C103: Полина | D103: Алексеевна | E103: 4 | F103: 17 | G103: 56 | H103: 30.36%
A104: 101 | B104: Юрганова | C104: Виктория | D104: Андреевна | E104: 4 | F104: 17 | G104: 56 | H104: 30.36%
A105: 102 | B105: Белин | C105: Радимир | D105: Вадимович | E105: 4 | F105: 16 | G105: 56 | H105: 28.57%
A106: 103 | B106: Голубева | C106: Анна | D106: Ильинична | E106: 4 | F106: 16 | G106: 56 | H106: 28.57%
A107: 104 | B107: Кириллова | C107: Валерия | D107: Александровна | E107: 4 | F107: 16 | G107: 56 | H107: 28.57%
A108: 105 | B108: Крупянко | C108: Милана | D108: Ивановна | E108: 4 | F108: 16 | G108: 56 | H108: 28.57%
A109: 106 | B109: Лобанова | C109: Ксения | D109: Семеновна | E109: 4 | F109: 16 | G109: 56 | H109: 28.57%
A110: 107 | B110: Петров | C110: Артём | D110: Александрович | E110: 4 | F110: 16 | G110: 56 | H110: 28.57%
A111: 108 | B111: Ситник | C111: Аделина | D111: Сергеевна | E111: 4 | F111: 16 | G111: 56 | H111: 28.57%
A112: 109 | B112: Сурмин | C112: Георгий | D112: Александрович | E112: 4 | F112: 16 | G112: 56 | H112: 28.57%
A113: 110 | B113: Хачатрян | C113: Ариана | D113: Артемовна | E113: 4 | F113: 16 | G113: 56 | H113: 28.57%
A114: 111 | B114: Череватова | C114: Злата | D114: Владимировна | E114: 4 | F114: 16 | G114: 56 | H114: 28.57%
A115: 112 | B115: Чуманова | C115: Елизавета | D115: Михайловна | E115: 4 | F115: 16 | G115: 56 | H115: 28.57%
A116: 113 | B116: Шилова | C116: Ксения | D116: Денисовна | E116: 4 | F116: 16 | G116: 56 | H116: 28.57%
A117: 114 | B117: Гречухин | C117: Игорь | D117: Владимирович | E117: 4 | F117: 15 | G117: 56 | H117: 26.79%
A118: 115 | B118: Лукова | C118: Алиса | D118: Васильевна | E118: 4 | F118: 15 | G118: 56 | H118: 26.79%
A119: 116 | B119: Петрова | C119: Диана | D119: Антоновна | E119: 4 | F119: 15 | G119: 56 | H119: 26.79%
A120: 117 | B120: Прилепская | C120: Полина | D120: Сергеевна | E120: 4 | F120: 15 | G120: 56 | H120: 26.79%
A121: 118 | B121: Пульдас | C121: Данила | D121: Викторович | E121: 4 | F121: 15 | G121: 56 | H121: 26.79%
A122: 119 | B122: Яровой | C122: Арсений | D122: Антонович | E122: 4 | F122: 15 | G122: 56 | H122: 26.79%
A123: 120 | B123: Ярская | C123: Ольга | D123: Романовна | E123: 4 | F123: 15 | G123: 56 | H123: 26.79%
A124: 121 | B124: Вощенков | C124: Матвей | D124: Артёмович | E124: 4 | F124: 14 | G124: 56 | H124: 25.00%
A125: 122 | B125: Кахраманов | C125: Эльнар | D125: Расимович | E125: 4 | F125: 14 | G125: 56 | H125: 25.00%
A126: 123 | B126: Коченева | C126: Полина | D126: Романовна | E126: 4 | F126: 14 | G126: 56 | H126: 25.00%
A127: 124 | B127: Макаров | C127: Марк | D127: Евгеньевич | E127: 4 | F127: 14 | G127: 56 | H127: 25.00%
A128: 125 | B128: Сын-Хир | C128: Полина | D128: Алексеевна | E128: 4 | F128: 14 | G128: 56 | H128: 25.00%
A129: 126 | B129: Тараканов | C129: Матвей | D129: Сергеевич | E129: 4 | F129: 14 | G129: 56 | H129: 25.00%
A130: 127 | B130: Хмура | C130: Кирилл | D130: Дмитриевич | E130: 4 | F130: 14 | G130: 56 | H130: 25.00%
A131: 128 | B131: Щемелева | C131: Полина | D131: Сергеевна | E131: 4 | F131: 14 | G131: 56 | H131: 25.00%
A132: 129 | B132: Юров | C132: Даниил | D132: Максимович | E132: 4 | F132: 14 | G132: 56 | H132: =F132/G132 -> 25.00%
A133: 130 | B133: Авагян | C133: Гагик | D133: Севакович | E133: 4 | F133: 13 | G133: 56 | H133: 23.21%
A134: 131 | B134: Гарифулин | C134: Родион | D134: Станиславович | E134: 4 | F134: 13 | G134: 56 | H134: 23.21%
A135: 132 | B135: Колбаса | C135: Кирилл | D135: Константинович | E135: 4 | F135: 13 | G135: 56 | H135: 23.21%
A136: 133 | B136: Медведько | C136: Алёна | D136: Викторовна | E136: 4 | F136: 13 | G136: 56 | H136: 23.21%
A137: 134 | B137: Суворова | C137: Алиса | D137: Ивановна | E137: 4 | F137: 13 | G137: 56 | H137: 23.21%
A138: 135 | B138: Тарабанов | C138: Павел | D138: Валерьевич | E138: 4 | F138: 13 | G138: 56 | H138: 23.21%
A139: 136 | B139: Вальман | C139: Максим | D139: Сергеевич | E139: 4 | F139: 12 | G139: 56 | H139: 21.43%
A140: 137 | B140: Кильдиватова | C140: Марина | D140: Витальевна | E140: 4 | F140: 12 | G140: 56 | H140: 21.43%
A141: 138 | B141: Овчинников | C141: Артём | D141: Николаевич | E141: 4 | F141: 12 | G141: 56 | H141: 21.43%
A142: 139 | B142: Смоян | C142: Полина | D142: Тимуровна | E142: 4 | F142: 12 | G142: 56 | H142: 21.43%
A143: 140 | B143: Сёмочкина | C143: Софья | D143: Дмитриевна | E143: 4 | F143: 12 | G143: 56 | H143: 21.43%
A144: 141 | B144: Тарасов | C144: Тимофей | D144: Михайлович | E144: 4 | F144: 12 | G144: 56 | H144: 21.43%
A145: 142 | B145: Богомякова | C145: Мира | D145: Ильинична | E145: 4 | F145: 11 | G145: 56 | H145: 19.64%
A146: 143 | B146: Шапошникова | C146: Полина | D146: Павловна | E146: 4 | F146: 11 | G146: 56 | H146: 19.64%
A147: 144 | B147: Волошин | C147: Константин | D147: Дмитриевич | E147: 4 | F147: 10 | G147: 56 | H147: 17.86%
A148: 145 | B148: Дергунов | C148: Дмитрий | D148: Максимович | E148: 4 | F148: 10 | G148: 56 | H148: 17.86%
A149: 146 | B149: Карабанов | C149: Александр | D149: Дмитриевич | E149: 4 | F149: 10 | G149: 56 | H149: 17.86%
A150: 147 | B150: Ковалева | C150: Варвара | D150: Евгеньевна | E150: 4 | F150: 10 | G150: 56 | H150: 17.86%
A151: 148 | B151: Левакова | C151: Софья | D151: Максимовна | E151: 4 | F151: 10 | G151: 56 | H151: 17.86%
A152: 149 | B152: Леонтьева | C152: Дарья | D152: Ивановна | E152: 4 | F152: 10 | G152: 56 | H152: 17.86%
A153: 150 | B153: Марющенко | C153: София | D153: Александровна | E153: 4 | F153: 10 | G153: 56 | H153: 17.86%
A154: 151 | B154: Садкина | C154: Лидия | D154: Алексеевна | E154: 4 | F154: 10 | G154: 56 | H154: 17.86%
A155: 152 | B155: Чепрасова | C155: София | E155: 4 | F155: 10 | G155: 56 | H155: 17.86%
A156: 153 | B156: Шлыкова | C156: Мария | D156: Владимировна | E156: 4 | F156: 10 | G156: 56 | H156: 17.86%
A157: 154 | B157: Шмидт | C157: Варвара | D157: Михайловна | E157: 4 | F157: 10 | G157: 56 | H157: 17.86%
A158: 155 | B158: Асанов | C158: Ратмир | D158: Евгенивич | E158: 4 | F158: 9 | G158: 56 | H158: 16.07%
A159: 156 | B159: Болотина | C159: Ева | D159: Максимовна | E159: 4 | F159: 9 | G159: 56 | H159: 16.07%
A160: 157 | B160: Ермоленко | C160: Данил | D160: Витальевич | E160: 4 | F160: 9 | G160: 56 | H160: 16.07%
A161: 158 | B161: Калашян | C161: Давид | D161: Тахарович | E161: 4 | F161: 9 | G161: 56 | H161: 16.07%
A162: 159 | B162: Стрелова | C162: Мария | D162: Вячеславовна | E162: 4 | F162: 9 | G162: 56 | H162: 16.07%
A163: 160 | B163: Сухарева | C163: Дарья | D163: Дмитревна | E163: 4 | F163: 9 | G163: 56 | H163: 16.07%
A164: 161 | B164: Томилова | C164: Виктория | D164: Александровна | E164: 4 | F164: 9 | G164: 56 | H164: 16.07%
A165: 162 | B165: Тур | C165: Матвей | D165: Дмитриевич | E165: 4 | F165: 9 | G165: 56 | H165: 16.07%
A166: 163 | B166: Жук | C166: Ариана | D166: Михайловна | E166: 4 | F166: 9 | G166: 56 | H166: 16.07%
A167: 164 | B167: Черепанов | C167: Андрей | D167: Дмитриевич | E167: 4 | F167: 9 | G167: 56 | H167: 16.07%
A168: 165 | B168: Лебедева | C168: Дарья | D168: Алексеевна | E168: 4 | F168: 8 | G168: 56 | H168: 14.29%
A169: 166 | B169: Проскурякова | C169: Милана | D169: Александровна | E169: 4 | F169: 8 | G169: 56 | H169: 14.29%
A170: 167 | B170: Свиридов | C170: Ярослав | D170: Игоревич | E170: 4 | F170: 8 | G170: 56 | H170: 14.29%
A171: 168 | B171: Суспицин | C171: Алексей | D171: Романович | E171: 4 | F171: 8 | G171: 56 | H171: 14.29%
A172: 169 | B172: Коротченко | C172: Максим | D172: Андреевич | E172: 4 | F172: 7 | G172: 56 | H172: 12.50%
A173: 170 | B173: Кривенко | C173: Василина | D173: Андреевна | E173: 4 | F173: 7 | G173: 56 | H173: 12.50%
A174: 171 | B174: Неболсин | C174: Тимур | D174: Сергеевич | E174: 4 | F174: 7 | G174: 56 | H174: 12.50%
A175: 172 | B175: Ромашко | C175: Матрона | D175: Андреевна | E175: 4 | F175: 7 | G175: 56 | H175: 12.50%
A176: 173 | B176: Скороспешев | C176: Максим | D176: Денисович | E176: 4 | F176: 7 | G176: 56 | H176: 12.50%
A177: 174 | B177: Смирнов | C177: Дамир | D177: Сергеевич | E177: 4 | F177: 7 | G177: 56 | H177: 12.50%
A178: 175 | B178: Дресвянникова | C178: Анна | D178: Сергеевна | E178: 4 | F178: 7 | G178: 56 | H178: 12.50%
A179: 176 | B179: Швидко | C179: Евгений | D179: Андреевич | E179: 4 | F179: 7 | G179: 56 | H179: 12.50%
A180: 177 | B180: Ковтун | C180: Николь | D180: Алексеевна | E180: 4 | F180: 6 | G180: 56 | H180: 10.71%
A181: 178 | B181: Юсупов | C181: Семен | D181: Олегович | E181: 4 | F181: 6 | G181: 56 | H181: 10.71%
A182: 179 | B182: Филков | C182: Иван | D182: Романович | E182: 4 | F182: 4 | G182: 56 | H182: 7.14%
A183: 180 | B183: Кузнецова | C183: Варвара | D183: Витальевна | E183: 4 | F183: 3 | G183: 56 | H183: 5.36%
A184: 181 | B184: Козлова | C184: Анастасия | D184: Алексеевна | E184: 4 | F184: 2 | G184: 56 | H184: 3.57%
A185: 182 | B185: Папантонопуло | C185: Елена | D185: Николаевна | E185: 4 | F185: 2 | G185: 56 | H185: 3.57%
A186: 183 | B186: Пудник | C186: Александр | D186: Иванович | E186: 4 | F186: 2 | G186: 56 | H186: 3.57%
A187: 184 | B187: Чешуаков | C187: Ибрагим | E187: 4 | F187: 2 | G187: 56 | H187: 3.57%
A188: 185 | B188: Дубровин | C188: Юрий | D188: Константинович | E188: 4 | F188: 2 | G188: 56 | H188: 3.57%
A189: 186 | B189: Борисова | C189: Майя | D189: Кирилловна | E189: 4 | F189: 1 | G189: 56 | H189: 1.79%
A190: 187 | B190: Никандров | C190: Платон | D190: Владимирович | E190: 4 | F190: 0 | G190: 56 | H190: 0.00%
A191: 188 | B191: Фёдорова | C191: Алиса | D191: Евгеньевна | E191: 4 | F191: 0 | G191: 56 | H191: 0.00%
A192: 189 | B192: Черкашина | C192: Даниэла | D192: Антоновна | E192: 4 | F192: 0 | G192: 56 | H192: 0.00%
A193: 190 | B193: Шелехова | C193: Аделина | D193: Игоревна | E193: 4 | F193: 0 | G193: 56 | H193: 0.00%
A194: 191 | B194: Семочкина | C194: Анжелика | D194: Руслановна | E194: 4 | F194: 0 | G194: 56 | H194: 0.00%
A195: 192 | B195: Собинов | C195: Демид | D195: Кириллович | E195: 4 | F195: 0 | G195: 56 | H195: 0.00%
A196: 193 | B196: Дриманов | C196: Андрей | D196: Алексеевич | E196: 5 | F196: 49 | G196: 56 | H196: =F196/G196 -> 87.50%
A197: 194 | B197: Некрасов | C197: Савелий | D197: Артёмович | E197: 5 | F197: 49 | G197: 56 | H197: 87.50%
A198: 195 | B198: Рудченко | C198: Анна | D198: Денисовна | E198: 5 | F198: 49 | G198: 56 | H198: 87.50%
A199: 196 | B199: Сироткина | C199: Александра | D199: Дмитриевна | E199: 5 | F199: 49 | G199: 56 | H199: 87.50%
A200: 197 | B200: Сычева | C200: Мария | D200: Михайловна | E200: 5 | F200: 49 | G200: 56 | H200: 87.50%
A201: 198 | B201: Юдин | C201: Мирон | D201: Дмитриевич | E201: 5 | F201: 49 | G201: 56 | H201: 87.50%
... 1064 more rows
